[Event "Titled Tuesday Blitz August 08 Early 2023"]
[White "Mayank Chakraborty"]
[Black "Iskusnyh, Sergei"]
[WhiteFideId "25659766"]
[BlackFideId "4120027"]
[WhiteElo "2802"]
[BlackElo "2653"]
[Result "1-0"]
[Round "8"]
[TimeControl "180+1"]
[Date "2023.08.08"]
[WhiteClock "0:00:06"]
[BlackClock "0:00:00"]
[Board "32"]

1. Nf3 {[%clk 0:03:00]}  d5 {[%clk 0:02:59]} 2. e3 {[%clk 0:03:00]}  Nf6 {[%clk 0:02:59]} 3. b3 {[%clk 0:03:00]}  Bf5 {[%clk 0:02:58]} 4. Bb2 {[%clk 0:03:00]}  e6 {[%clk 0:02:58]} 5. c4 {[%clk 0:03:00]}  h6 {[%clk 0:02:56]} 6. Nc3 {[%clk 0:03:00]}  c6 {[%clk 0:02:55]} 7. d4 {[%clk 0:02:59]}  Be7 {[%clk 0:02:55]} 8. Bd3 {[%clk 0:02:58]}  Bxd3 {[%clk 0:02:49]} 9. Qxd3 {[%clk 0:02:59]}  Nbd7 {[%clk 0:02:45]} 10. O-O {[%clk 0:03:00]}  O-O {[%clk 0:02:44]} 11. e4 {[%clk 0:03:00]}  dxe4 {[%clk 0:02:44]} 12. Nxe4 {[%clk 0:03:00]}  Nxe4 {[%clk 0:02:44]} 13. Qxe4 {[%clk 0:03:01]}  a5 {[%clk 0:02:42]} 14. Rfd1 {[%clk 0:02:55]}  Nf6 {[%clk 0:02:38]} 15. Qe2 {[%clk 0:02:51]}  a4 {[%clk 0:02:39]} 16. Ne5 {[%clk 0:02:50]}  Qa5 {[%clk 0:02:33]} 17. h3 {[%clk 0:02:38]}  Rfd8 {[%clk 0:02:29]} 18. Rd3 {[%clk 0:02:36]}  Nd7 {[%clk 0:02:10]} 19. Ng4 {[%clk 0:02:21]}  Nf6 {[%clk 0:02:05]} 20. b4 {[%clk 0:02:13]}  Qf5 {[%clk 0:01:33]} 21. Rf3 {[%clk 0:02:12]}  Qh7 {[%clk 0:01:12]} 22. Rg3 {[%clk 0:01:51]}  Nxg4 {[%clk 0:01:09]} 23. Rxg4 {[%clk 0:01:46]}  a3 {[%clk 0:00:48]} 24. Bc3 {[%clk 0:01:42]}  Bf8 {[%clk 0:00:48]} 25. Rd1 {[%clk 0:01:33]}  b5 {[%clk 0:00:47]} 26. c5 {[%clk 0:01:24]}  Rd5 {[%clk 0:00:46]} 27. Rd3 {[%clk 0:01:20]}  Rad8 {[%clk 0:00:44]} 28. Re3 {[%clk 0:00:58]}  Qb1+ {[%clk 0:00:40]} 29. Kh2 {[%clk 0:00:56]}  Qc1 {[%clk 0:00:33]} 30. f4 {[%clk 0:00:42]}  Qb1 {[%clk 0:00:28]} 31. Rgg3 {[%clk 0:00:40]}  Be7 {[%clk 0:00:25]} 32. Rgf3 {[%clk 0:00:39]}  Bf6 {[%clk 0:00:25]} 33. Re5 {[%clk 0:00:24]}  Rxd4 {[%clk 0:00:21]} 34. Bxd4 {[%clk 0:00:23]}  Rxd4 {[%clk 0:00:21]} 35. Ree3 {[%clk 0:00:14]}  Qxb4 {[%clk 0:00:20]} 36. Rxa3 {[%clk 0:00:14]}  Rxf4 {[%clk 0:00:20]} 37. Ra8+ {[%clk 0:00:13]}  Kh7 {[%clk 0:00:19]} 38. Qd3+ {[%clk 0:00:12]}  g6 {[%clk 0:00:19]} 39. a3 {[%clk 0:00:12]}  Rxf3 {[%clk 0:00:12]} 40. Qxf3 {[%clk 0:00:10]}  Qd4 {[%clk 0:00:12]} 41. Rf8 {[%clk 0:00:04]}  Kg7 {[%clk 0:00:11]} 42. Rc8 {[%clk 0:00:05]}  Be5+ {[%clk 0:00:11]} 43. g3 {[%clk 0:00:05]}  h5 {[%clk 0:00:11]} 44. Kg2 {[%clk 0:00:03]}  Qxc5 {[%clk 0:00:10]} 45. Rxc6 {[%clk 0:00:03]}  Qd4 {[%clk 0:00:10]} 46. Rc2 {[%clk 0:00:03]}  h4 {[%clk 0:00:08]} 47. gxh4 {[%clk 0:00:02]}  Qxh4 {[%clk 0:00:08]} 48. Qg4 {[%clk 0:00:02]}  Qd8 {[%clk 0:00:07]} 49. Re2 {[%clk 0:00:02]}  Bf6 {[%clk 0:00:05]} 50. Qe4 {[%clk 0:00:03]}  Qd6 {[%clk 0:00:03]} 51. Qf3 {[%clk 0:00:03]}  Qd4 {[%clk 0:00:03]} 52. Re4 {[%clk 0:00:02]}  Qb2+ {[%clk 0:00:02]} 53. Re2 {[%clk 0:00:03]}  Qd4 {[%clk 0:00:03]} 54. Rf2 {[%clk 0:00:03]}  Qe5 {[%clk 0:00:01]} 55. Qf4 {[%clk 0:00:03]}  Qxf4 {[%clk 0:00:02]} 56. Rxf4 {[%clk 0:00:03]}  Be7 {[%clk 0:00:02]} 57. Rf3 {[%clk 0:00:03]}  f5 {[%clk 0:00:02]} 58. Rb3 {[%clk 0:00:02]}  Kf6 {[%clk 0:00:02]} 59. Kf3 {[%clk 0:00:03]}  g5 {[%clk 0:00:02]} 60. Kg2 {[%clk 0:00:02]}  f4 {[%clk 0:00:02]} 61. Kf3 {[%clk 0:00:02]}  Bd6 {[%clk 0:00:01]} 62. Ke4 {[%clk 0:00:02]}  Be7 {[%clk 0:00:01]} 63. Rxb5 {[%clk 0:00:01]}  Bxa3 {[%clk 0:00:01]} 64. Rb7 {[%clk 0:00:02]}  Bd6 {[%clk 0:00:01]} 65. Ra7 {[%clk 0:00:02]}  Bc5 {[%clk 0:00:01]} 66. Ra5 {[%clk 0:00:03]}  Bd6 {[%clk 0:00:01]} 67. Rb5 {[%clk 0:00:03]}  Be7 {[%clk 0:00:02]} 68. Rb8 {[%clk 0:00:03]}  Bd6 {[%clk 0:00:02]} 69. Rc8 {[%clk 0:00:04]}  Be7 {[%clk 0:00:02]} 70. Rc7 {[%clk 0:00:04]}  Bd6 {[%clk 0:00:03]} 71. Rd7 {[%clk 0:00:05]}  Be7 {[%clk 0:00:03]} 72. Rb7 {[%clk 0:00:05]}  Bd6 {[%clk 0:00:03]} 73. Rh7 {[%clk 0:00:06]}  Kg6 {[%clk 0:00:03]} 74. Rd7 {[%clk 0:00:06]}  Bc5 {[%clk 0:00:00]} 75. Rc7 {[%clk 0:00:06]} 1-0


[Site "https://www.chess.com"]

[Event "Titled Tuesday Blitz August 08 Early 2023"]
[White "Pham, Le Thao Nguyen"]
[Black "Christiansen, Johan-Sebastian"]
[WhiteFideId "12401226"]
[BlackFideId "1512668"]
[WhiteElo "2644"]
[BlackElo "2801"]
[Result "1-0"]
[Round "8"]
[TimeControl "180+1"]
[Date "2023.08.08"]
[WhiteClock "0:00:07"]
[BlackClock "0:00:23"]
[Board "33"]

1. d4 {[%clk 0:02:56]}  d5 {[%clk 0:02:59]} 2. c4 {[%clk 0:02:55]}  dxc4 {[%clk 0:03:00]} 3. Nf3 {[%clk 0:02:46]}  Nf6 {[%clk 0:03:00]} 4. e3 {[%clk 0:02:46]}  b5 {[%clk 0:03:01]} 5. a4 {[%clk 0:02:45]}  b4 {[%clk 0:03:01]} 6. Bxc4 {[%clk 0:02:44]}  e6 {[%clk 0:03:02]} 7. O-O {[%clk 0:02:38]}  Be7 {[%clk 0:03:03]} 8. Nbd2 {[%clk 0:02:32]}  Bb7 {[%clk 0:03:03]} 9. a5 {[%clk 0:02:20]}  a6 {[%clk 0:03:03]} 10. Qe2 {[%clk 0:01:58]}  O-O {[%clk 0:03:04]} 11. Nb3 {[%clk 0:01:49]}  Nbd7 {[%clk 0:03:04]} 12. Rd1 {[%clk 0:01:47]}  c5 {[%clk 0:03:04]} 13. dxc5 {[%clk 0:00:41]}  Qc7 {[%clk 0:03:04]} 14. Bd2 {[%clk 0:00:38]}  Ng4 {[%clk 0:03:02]} 15. e4 {[%clk 0:00:29]}  Nxc5 {[%clk 0:02:58]} 16. h3 {[%clk 0:00:24]}  Nf6 {[%clk 0:02:06]} 17. Bxb4 {[%clk 0:00:18]}  Nfxe4 {[%clk 0:02:01]} 18. Nxc5 {[%clk 0:00:16]}  Bxc5 {[%clk 0:02:00]} 19. Bxc5 {[%clk 0:00:15]}  Qxc5 {[%clk 0:02:01]} 20. Rdc1 {[%clk 0:00:10]}  Rfc8 {[%clk 0:01:49]} 21. Rc2 {[%clk 0:00:07]}  Nf6 {[%clk 0:01:23]} 22. Bd3 {[%clk 0:00:07]}  Qd5 {[%clk 0:01:23]} 23. Ne1 {[%clk 0:00:06]}  Rxc2 {[%clk 0:01:22]} 24. Qxc2 {[%clk 0:00:07]}  h5 {[%clk 0:01:19]} 25. Qc4 {[%clk 0:00:05]}  Qe5 {[%clk 0:01:16]} 26. Qc3 {[%clk 0:00:03]}  Qg5 {[%clk 0:01:16]} 27. Qc1 {[%clk 0:00:02]}  Qd5 {[%clk 0:01:01]} 28. Qc7 {[%clk 0:00:03]}  Qd6 {[%clk 0:01:02]} 29. Qxd6 {[%clk 0:00:03]}  Ne8 {[%clk 0:00:41]} 30. Qb6 {[%clk 0:00:02]}  Bd5 {[%clk 0:00:42]} 31. Rc1 {[%clk 0:00:02]}  Nf6 {[%clk 0:00:40]} 32. Bxa6 {[%clk 0:00:03]}  Nd7 {[%clk 0:00:36]} 33. Qd6 {[%clk 0:00:03]}  Nf6 {[%clk 0:00:23]} 34. b4 {[%clk 0:00:04]}  g6 {[%clk 0:00:24]} 35. Rc8+ {[%clk 0:00:03]}  Rxc8 {[%clk 0:00:23]} 36. Bxc8 {[%clk 0:00:04]}  Kg7 {[%clk 0:00:24]} 37. a6 {[%clk 0:00:05]}  Ne4 {[%clk 0:00:24]} 38. Qe5+ {[%clk 0:00:05]}  f6 {[%clk 0:00:25]} 39. Qc7+ {[%clk 0:00:05]}  Kh6 {[%clk 0:00:25]} 40. a7 {[%clk 0:00:06]}  Nd2 {[%clk 0:00:23]} 41. Bb7 {[%clk 0:00:07]} 1-0


[Site "https://www.chess.com"]

[Event "Titled Tuesday Blitz August 08 Early 2023"]
[White "Kumsiashvili, Nikoloz"]
[Black "Moskvin, Anatoly"]
[WhiteFideId "13600621"]
[BlackFideId "24199990"]
[WhiteElo "2754"]
[BlackElo "2604"]
[Result "1-0"]
[Round "8"]
[TimeControl "180+1"]
[Date "2023.08.08"]
[WhiteClock "0:00:16"]
[BlackClock "0:00:04"]
[Board "36"]

1. Nf3 {[%clk 0:03:00]}  g6 {[%clk 0:02:58]} 2. d4 {[%clk 0:02:59]}  Bg7 {[%clk 0:02:59]} 3. c4 {[%clk 0:02:59]}  c5 {[%clk 0:02:59]} 4. d5 {[%clk 0:02:59]}  b5 {[%clk 0:02:58]} 5. cxb5 {[%clk 0:02:55]}  a6 {[%clk 0:02:59]} 6. b6 {[%clk 0:02:55]}  Nf6 {[%clk 0:02:59]} 7. Nc3 {[%clk 0:02:54]}  d6 {[%clk 0:02:59]} 8. e4 {[%clk 0:02:52]}  O-O {[%clk 0:03:00]} 9. Be2 {[%clk 0:02:51]}  Nbd7 {[%clk 0:02:59]} 10. a4 {[%clk 0:02:49]}  a5 {[%clk 0:02:59]} 11. O-O {[%clk 0:02:42]}  Qxb6 {[%clk 0:02:59]} 12. Bb5 {[%clk 0:02:41]}  Ba6 {[%clk 0:02:50]} 13. Nd2 {[%clk 0:02:40]}  Qb7 {[%clk 0:02:44]} 14. Re1 {[%clk 0:02:35]}  Ne5 {[%clk 0:02:33]} 15. Qe2 {[%clk 0:02:29]}  e6 {[%clk 0:02:17]} 16. f4 {[%clk 0:02:23]}  Ned7 {[%clk 0:02:07]} 17. dxe6 {[%clk 0:02:19]}  fxe6 {[%clk 0:02:08]} 18. Nc4 {[%clk 0:02:19]}  Ne8 {[%clk 0:01:05]} 19. Qg4 {[%clk 0:01:50]}  Rf6 {[%clk 0:00:40]} 20. e5 {[%clk 0:01:36]}  dxe5 {[%clk 0:00:33]} 21. fxe5 {[%clk 0:01:34]}  Rf5 {[%clk 0:00:27]} 22. Nd6 {[%clk 0:01:04]}  Nxe5 {[%clk 0:00:17]} 23. Rxe5 {[%clk 0:00:47]}  Nxd6 {[%clk 0:00:17]} 24. Rxc5 {[%clk 0:00:44]}  Rxc5 {[%clk 0:00:16]} 25. Qxe6+ {[%clk 0:00:42]}  Kh8 {[%clk 0:00:11]} 26. Qxd6 {[%clk 0:00:40]}  Qa7 {[%clk 0:00:06]} 27. Be3 {[%clk 0:00:36]}  Rc6 {[%clk 0:00:06]} 28. Qf4 {[%clk 0:00:27]}  Qc7 {[%clk 0:00:04]} 29. Bxc6 {[%clk 0:00:25]}  Qxc6 {[%clk 0:00:04]} 30. Rc1 {[%clk 0:00:25]}  Rf8 {[%clk 0:00:04]} 31. Qh4 {[%clk 0:00:21]}  Qe6 {[%clk 0:00:04]} 32. Bd4 {[%clk 0:00:19]}  h5 {[%clk 0:00:04]} 33. Bxg7+ {[%clk 0:00:18]}  Kxg7 {[%clk 0:00:05]} 34. Qd4+ {[%clk 0:00:18]}  Kh7 {[%clk 0:00:06]} 35. h3 {[%clk 0:00:19]}  Rf7 {[%clk 0:00:06]} 36. Ne4 {[%clk 0:00:16]}  Bb7 {[%clk 0:00:04]} 37. Ng5+ {[%clk 0:00:16]} 1-0


[Site "https://www.chess.com"]

[Event "Titled Tuesday Blitz August 08 Early 2023"]
[White "Martins, Bruno Andre Leite"]
[Black "Materia, Marco"]
[WhiteFideId "1942255"]
[BlackFideId "45150451"]
[WhiteElo "2575"]
[BlackElo "2749"]
[Result "0-1"]
[Round "8"]
[TimeControl "180+1"]
[Date "2023.08.08"]
[WhiteClock "0:00:40"]
[BlackClock "0:02:22"]
[Board "38"]

1. c4 {[%clk 0:03:00]}  e6 {[%clk 0:02:59]} 2. Nf3 {[%clk 0:02:58]}  d5 {[%clk 0:03:00]} 3. d4 {[%clk 0:02:59]}  Nf6 {[%clk 0:03:00]} 4. g3 {[%clk 0:02:59]}  Be7 {[%clk 0:03:00]} 5. Bg2 {[%clk 0:03:00]}  O-O {[%clk 0:03:00]} 6. O-O {[%clk 0:03:01]}  c6 {[%clk 0:03:01]} 7. b3 {[%clk 0:02:56]}  b6 {[%clk 0:02:58]} 8. Bb2 {[%clk 0:02:57]}  Nbd7 {[%clk 0:02:58]} 9. Qc2 {[%clk 0:02:57]}  Bb7 {[%clk 0:02:57]} 10. Nc3 {[%clk 0:02:56]}  Ba6 {[%clk 0:02:58]} 11. Ne5 {[%clk 0:02:54]}  Nxe5 {[%clk 0:02:57]} 12. dxe5 {[%clk 0:02:55]}  Nd7 {[%clk 0:02:57]} 13. cxd5 {[%clk 0:02:55]}  cxd5 {[%clk 0:02:57]} 14. Rfd1 {[%clk 0:02:48]}  Rc8 {[%clk 0:02:56]} 15. e4 {[%clk 0:02:45]}  d4 {[%clk 0:02:50]} 16. Rxd4 {[%clk 0:02:42]}  Qc7 {[%clk 0:02:49]} 17. Qd1 {[%clk 0:02:30]}  Nxe5 {[%clk 0:02:48]} 18. Rc1 {[%clk 0:02:28]}  Qb7 {[%clk 0:02:41]} 19. Kh1 {[%clk 0:02:22]}  Rfd8 {[%clk 0:02:37]} 20. f4 {[%clk 0:02:19]}  Nd3 {[%clk 0:02:35]} 21. Rxd8+ {[%clk 0:01:33]}  Rxd8 {[%clk 0:02:34]} 22. e5 {[%clk 0:01:24]}  Nf2+ {[%clk 0:02:22]} 23. Kg1 {[%clk 0:00:54]}  Nxd1 {[%clk 0:02:21]} 24. Bxb7 {[%clk 0:00:40]}  Bc5+ {[%clk 0:02:22]} 0-1


[Site "https://www.chess.com"]

[Event "Titled Tuesday Blitz August 08 Early 2023"]
[White "Rosenberg, Evan S"]
[Black "Shyam, Sundar M."]
[WhiteFideId "2019299"]
[BlackFideId "5019141"]
[WhiteElo "2452"]
[BlackElo "2729"]
[Result "1/2-1/2"]
[Round "8"]
[TimeControl "180+1"]
[Date "2023.08.08"]
[WhiteClock "0:00:08"]
[BlackClock "0:00:46"]
[Board "44"]

1. e4 {[%clk 0:03:00]}  e5 {[%clk 0:03:00]} 2. Nf3 {[%clk 0:03:00]}  Nc6 {[%clk 0:03:00]} 3. Nc3 {[%clk 0:03:00]}  Nf6 {[%clk 0:03:00]} 4. d4 {[%clk 0:02:59]}  exd4 {[%clk 0:03:00]} 5. Nxd4 {[%clk 0:02:59]}  Bb4 {[%clk 0:03:01]} 6. Nxc6 {[%clk 0:02:59]}  bxc6 {[%clk 0:03:02]} 7. Bd3 {[%clk 0:02:59]}  O-O {[%clk 0:03:03]} 8. O-O {[%clk 0:02:58]}  d5 {[%clk 0:03:03]} 9. exd5 {[%clk 0:02:57]}  cxd5 {[%clk 0:03:04]} 10. Bg5 {[%clk 0:02:56]}  c6 {[%clk 0:03:04]} 11. Qf3 {[%clk 0:02:56]}  Bd6 {[%clk 0:02:55]} 12. Rae1 {[%clk 0:02:48]}  Rb8 {[%clk 0:02:50]} 13. Nd1 {[%clk 0:02:43]}  h6 {[%clk 0:02:50]} 14. Bxf6 {[%clk 0:02:43]}  Qxf6 {[%clk 0:02:51]} 15. Qxf6 {[%clk 0:02:43]}  gxf6 {[%clk 0:02:52]} 16. b3 {[%clk 0:02:43]}  Be6 {[%clk 0:02:40]} 17. Ne3 {[%clk 0:02:43]}  Bb4 {[%clk 0:02:36]} 18. Re2 {[%clk 0:02:35]}  Rfe8 {[%clk 0:02:36]} 19. Rd1 {[%clk 0:02:11]}  c5 {[%clk 0:02:31]} 20. Kf1 {[%clk 0:02:05]}  d4 {[%clk 0:02:30]} 21. Nf5 {[%clk 0:02:05]}  Bxf5 {[%clk 0:02:29]} 22. Bxf5 {[%clk 0:02:06]}  Bc3 {[%clk 0:02:21]} 23. Bd3 {[%clk 0:01:55]}  Kg7 {[%clk 0:02:15]} 24. Bc4 {[%clk 0:01:50]}  Re5 {[%clk 0:02:08]} 25. f4 {[%clk 0:01:46]}  Ree8 {[%clk 0:02:04]} 26. Rd3 {[%clk 0:01:45]}  f5 {[%clk 0:02:03]} 27. Kf2 {[%clk 0:01:27]}  Rxe2+ {[%clk 0:02:01]} 28. Kxe2 {[%clk 0:01:27]}  Re8+ {[%clk 0:02:02]} 29. Kf2 {[%clk 0:01:24]}  Re4 {[%clk 0:01:58]} 30. g3 {[%clk 0:01:21]}  Kf6 {[%clk 0:01:56]} 31. Rd1 {[%clk 0:01:09]}  Re8 {[%clk 0:01:47]} 32. Bd3 {[%clk 0:01:00]}  Re6 {[%clk 0:01:43]} 33. Bc4 {[%clk 0:01:00]}  Re4 {[%clk 0:01:37]} 34. Bd3 {[%clk 0:01:00]}  Ke6 {[%clk 0:01:36]} 35. Bc4+ {[%clk 0:00:56]}  Ke7 {[%clk 0:01:35]} 36. a4 {[%clk 0:00:53]}  f6 {[%clk 0:01:34]} 37. Kf3 {[%clk 0:00:49]}  Kd6 {[%clk 0:01:32]} 38. Bd3 {[%clk 0:00:45]}  Kd5 {[%clk 0:01:32]} 39. Bc4+ {[%clk 0:00:44]}  Kd6 {[%clk 0:01:33]} 40. Bd3 {[%clk 0:00:45]}  Re3+ {[%clk 0:01:31]} 41. Kf2 {[%clk 0:00:45]}  Kc6 {[%clk 0:01:25]} 42. Bxf5 {[%clk 0:00:42]}  Kb6 {[%clk 0:01:25]} 43. Bd3 {[%clk 0:00:34]}  Ka5 {[%clk 0:01:25]} 44. Be2 {[%clk 0:00:18]}  Kb4 {[%clk 0:01:24]} 45. Bd3 {[%clk 0:00:16]}  Ka3 {[%clk 0:01:22]} 46. Rg1 {[%clk 0:00:13]}  Ba5 {[%clk 0:01:18]} 47. Rd1 {[%clk 0:00:12]}  Bc7 {[%clk 0:01:18]} 48. Re1 {[%clk 0:00:11]}  Rxe1 {[%clk 0:01:08]} 49. Kxe1 {[%clk 0:00:12]}  Kb2 {[%clk 0:01:08]} 50. Kd1 {[%clk 0:00:12]}  Ba5 {[%clk 0:00:57]} 51. Bc4 {[%clk 0:00:11]}  Bc7 {[%clk 0:00:56]} 52. Bd3 {[%clk 0:00:12]}  Bd6 {[%clk 0:00:56]} 53. Bc4 {[%clk 0:00:12]}  Kc3 {[%clk 0:00:57]} 54. Bd3 {[%clk 0:00:13]}  Bc7 {[%clk 0:00:48]} 55. Bc4 {[%clk 0:00:13]}  Bb6 {[%clk 0:00:48]} 56. Bd3 {[%clk 0:00:14]}  Ba5 {[%clk 0:00:49]} 57. Bc4 {[%clk 0:00:14]}  Kb2 {[%clk 0:00:50]} 58. Bd3 {[%clk 0:00:14]}  Bc3 {[%clk 0:00:50]} 59. Bc4 {[%clk 0:00:14]}  Ka3 {[%clk 0:00:50]} 60. Bd3 {[%clk 0:00:15]}  Ka2 {[%clk 0:00:49]} 61. Bc4 {[%clk 0:00:15]}  Ka1 {[%clk 0:00:50]} 62. Bd3 {[%clk 0:00:15]}  Bb2 {[%clk 0:00:50]} 63. Bc4 {[%clk 0:00:15]}  Kb1 {[%clk 0:00:50]} 64. Bd3 {[%clk 0:00:15]}  Ka1 {[%clk 0:00:50]} 65. Bc4 {[%clk 0:00:15]}  a5 {[%clk 0:00:50]} 66. Bd3 {[%clk 0:00:15]}  Ka2 {[%clk 0:00:51]} 67. Bc4 {[%clk 0:00:15]}  Kb1 {[%clk 0:00:51]} 68. Bd3 {[%clk 0:00:15]}  Bc1 {[%clk 0:00:52]} 69. Bc4 {[%clk 0:00:11]}  Kb2 {[%clk 0:00:52]} 70. Bd3 {[%clk 0:00:10]}  Be3 {[%clk 0:00:53]} 71. h3 {[%clk 0:00:09]}  Bf2 {[%clk 0:00:51]} 72. g4 {[%clk 0:00:09]}  Be3 {[%clk 0:00:49]} 73. f5 {[%clk 0:00:08]}  Bf2 {[%clk 0:00:49]} 74. Bc4 {[%clk 0:00:07]}  Bh4 {[%clk 0:00:50]} 75. Bd3 {[%clk 0:00:08]}  Kc3 {[%clk 0:00:51]} 76. Bc4 {[%clk 0:00:07]}  Bg5 {[%clk 0:00:50]} 77. Bd3 {[%clk 0:00:07]}  Kb4 {[%clk 0:00:43]} 78. Bc4 {[%clk 0:00:06]}  Bf4 {[%clk 0:00:43]} 79. Bd3 {[%clk 0:00:07]}  c4 {[%clk 0:00:42]} 80. Bxc4 {[%clk 0:00:07]}  Kc3 {[%clk 0:00:43]} 81. Bd3 {[%clk 0:00:07]}  Bg5 {[%clk 0:00:43]} 82. Bc4 {[%clk 0:00:07]}  Bh4 {[%clk 0:00:44]} 83. Bd3 {[%clk 0:00:07]}  Bg5 {[%clk 0:00:44]} 84. Bc4 {[%clk 0:00:08]}  Bh4 {[%clk 0:00:45]} 85. Bd3 {[%clk 0:00:08]}  Bg5 {[%clk 0:00:46]} 1/2-1/2


[Site "https://www.chess.com"]

[Event "Titled Tuesday Blitz August 08 Early 2023"]
[White "Aaditya Dhingra"]
[Black "Muradli, Mahammad"]
[WhiteFideId "25678191"]
[BlackFideId "13409301"]
[WhiteElo "2684"]
[BlackElo "2896"]
[Result "0-1"]
[Round "8"]
[TimeControl "180+1"]
[Date "2023.08.08"]
[WhiteClock "0:00:31"]
[BlackClock "0:00:20"]
[Board "47"]

1. d4 {[%clk 0:02:58]}  d6 {[%clk 0:03:00]} 2. c4 {[%clk 0:02:57]}  g6 {[%clk 0:03:01]} 3. Nc3 {[%clk 0:02:57]}  Bg7 {[%clk 0:03:02]} 4. Nf3 {[%clk 0:02:57]}  c5 {[%clk 0:03:02]} 5. d5 {[%clk 0:02:57]}  e6 {[%clk 0:03:02]} 6. g3 {[%clk 0:02:55]}  Ne7 {[%clk 0:03:01]} 7. Bg2 {[%clk 0:02:54]}  exd5 {[%clk 0:02:57]} 8. cxd5 {[%clk 0:02:53]}  a6 {[%clk 0:02:58]} 9. a4 {[%clk 0:02:52]}  O-O {[%clk 0:02:57]} 10. O-O {[%clk 0:02:52]}  Nd7 {[%clk 0:02:55]} 11. Nd2 {[%clk 0:02:48]}  Rb8 {[%clk 0:02:40]} 12. Nc4 {[%clk 0:02:46]}  Nb6 {[%clk 0:02:40]} 13. Nxd6 {[%clk 0:02:34]}  Qxd6 {[%clk 0:02:36]} 14. Bf4 {[%clk 0:02:33]}  Be5 {[%clk 0:02:37]} 15. Ne4 {[%clk 0:02:32]}  Bxf4 {[%clk 0:02:37]} 16. Nxd6 {[%clk 0:02:32]}  Bxd6 {[%clk 0:02:38]} 17. Qb3 {[%clk 0:02:28]}  Nd7 {[%clk 0:02:33]} 18. e4 {[%clk 0:02:26]}  b5 {[%clk 0:02:27]} 19. f4 {[%clk 0:02:25]}  c4 {[%clk 0:02:26]} 20. Qc2 {[%clk 0:02:21]}  f6 {[%clk 0:02:26]} 21. Rae1 {[%clk 0:02:17]}  Bb7 {[%clk 0:02:09]} 22. Bh3 {[%clk 0:02:15]}  f5 {[%clk 0:01:41]} 23. axb5 {[%clk 0:01:55]}  axb5 {[%clk 0:01:32]} 24. exf5 {[%clk 0:01:51]}  Nxf5 {[%clk 0:01:23]} 25. Qe4 {[%clk 0:01:38]}  Nc5 {[%clk 0:01:10]} 26. Qf3 {[%clk 0:01:32]}  Nd3 {[%clk 0:01:08]} 27. Re6 {[%clk 0:01:30]}  Bc5+ {[%clk 0:01:00]} 28. Kh1 {[%clk 0:01:29]}  Nd4 {[%clk 0:01:00]} 29. Qe4 {[%clk 0:01:22]}  Rbd8 {[%clk 0:00:57]} 30. Rxg6+ {[%clk 0:01:21]}  Kh8 {[%clk 0:00:52]} 31. Rg5 {[%clk 0:01:20]}  Rfe8 {[%clk 0:00:44]} 32. Qg2 {[%clk 0:01:00]}  Re2 {[%clk 0:00:39]} 33. Qg1 {[%clk 0:00:54]}  Rxd5 {[%clk 0:00:26]} 34. Bg2 {[%clk 0:00:50]}  Rxg5 {[%clk 0:00:24]} 35. Bxb7 {[%clk 0:00:46]}  Rh5 {[%clk 0:00:24]} 36. Ra1 {[%clk 0:00:37]}  Nf2+ {[%clk 0:00:24]} 37. Kg2 {[%clk 0:00:31]}  Nh3+ {[%clk 0:00:20]} 0-1


[Site "https://www.chess.com"]